[Event "Titled Tuesday Blitz January 10 Early 2023"]
[White "Lehtosaari, Mauri"]
[Black "Wilson, Elvin"]
[WhiteFideId "501999"]
[BlackFideId "2014874"]
[WhiteElo "2176"]
[BlackElo "2183"]
[Result "1-0"]
[Round "09"]
[TimeControl "180+2"]
[Date "2023.01.10"]
[WhiteClock "0:00:06"]
[BlackClock "0:00:01"]

1. d4 {[%clk 0:03:00]}  Nf6 {[%clk 0:02:59]} 2. Nf3 {[%clk 0:03:00]}  e6 {[%clk 0:02:55]} 3. Bg5 {[%clk 0:02:57]}  d5 {[%clk 0:02:51]} 4. Nbd2 {[%clk 0:02:56]}  Be7 {[%clk 0:02:50]} 5. e3 {[%clk 0:02:56]}  b6 {[%clk 0:02:49]} 6. Ne5 {[%clk 0:02:52]}  Bb7 {[%clk 0:02:48]} 7. Bd3 {[%clk 0:02:50]}  a6 {[%clk 0:02:36]} 8. O-O {[%clk 0:02:39]}  Nbd7 {[%clk 0:02:32]} 9. f4 {[%clk 0:02:39]}  c5 {[%clk 0:02:28]} 10. c3 {[%clk 0:02:39]}  Ne4 {[%clk 0:02:22]} 11. Bxe7 {[%clk 0:02:22]}  Qxe7 {[%clk 0:02:21]} 12. Nxd7 {[%clk 0:02:16]}  Qxd7 {[%clk 0:02:19]} 13. Nf3 {[%clk 0:02:16]}  f6 {[%clk 0:02:16]} 14. Qe2 {[%clk 0:02:01]}  c4 {[%clk 0:02:01]} 15. Bxe4 {[%clk 0:01:56]}  dxe4 {[%clk 0:01:59]} 16. Nd2 {[%clk 0:01:56]}  b5 {[%clk 0:01:54]} 17. a4 {[%clk 0:01:47]}  O-O {[%clk 0:01:53]} 18. Qh5 {[%clk 0:01:32]}  f5 {[%clk 0:01:42]} 19. g4 {[%clk 0:01:23]}  Bd5 {[%clk 0:01:37]} 20. Rf2 {[%clk 0:01:15]}  bxa4 {[%clk 0:01:07]} 21. Rg2 {[%clk 0:01:03]}  Rab8 {[%clk 0:01:03]} 22. gxf5 {[%clk 0:00:58]}  Rxf5 {[%clk 0:00:57]} 23. Qg4 {[%clk 0:00:47]}  Rxb2 {[%clk 0:00:46]} 24. Rxa4 {[%clk 0:00:43]}  Rxd2 {[%clk 0:00:43]} 25. Rxa6 {[%clk 0:00:30]}  Rxg2+ {[%clk 0:00:41]} 26. Kxg2 {[%clk 0:00:30]}  h6 {[%clk 0:00:22]} 27. Rb6 {[%clk 0:00:20]}  Kh7 {[%clk 0:00:21]} 28. h4 {[%clk 0:00:19]}  Qf7 {[%clk 0:00:19]} 29. Kg3 {[%clk 0:00:18]}  Rf6 {[%clk 0:00:18]} 30. h5 {[%clk 0:00:19]}  Rf5 {[%clk 0:00:15]} 31. Kh4 {[%clk 0:00:18]}  Qf6+ {[%clk 0:00:06]} 32. Kg3 {[%clk 0:00:18]}  Qd8 {[%clk 0:00:06]} 33. Rb1 {[%clk 0:00:17]}  Qe8 {[%clk 0:00:05]} 34. Kh3 {[%clk 0:00:17]}  Qxh5+ {[%clk 0:00:04]} 35. Kg3 {[%clk 0:00:17]}  Qxg4+ {[%clk 0:00:04]} 36. Kxg4 {[%clk 0:00:18]}  Kg6 {[%clk 0:00:04]} 37. Rb8 {[%clk 0:00:16]}  Kf6 {[%clk 0:00:04]} 38. Rf8+ {[%clk 0:00:16]}  Ke7 {[%clk 0:00:04]} 39. Rg8 {[%clk 0:00:17]}  Kf7 {[%clk 0:00:04]} 40. Rc8 {[%clk 0:00:16]}  h5+ {[%clk 0:00:05]} 41. Kh4 {[%clk 0:00:16]}  g6 {[%clk 0:00:05]} 42. Rc7+ {[%clk 0:00:16]}  Ke8 {[%clk 0:00:05]} 43. Rc8+ {[%clk 0:00:16]}  Kd7 {[%clk 0:00:05]} 44. Rg8 {[%clk 0:00:17]}  Rf6 {[%clk 0:00:05]} 45. Kg5 {[%clk 0:00:17]}  Rf5+ {[%clk 0:00:05]} 46. Kh4 {[%clk 0:00:16]}  Rf6 {[%clk 0:00:05]} 47. Kg5 {[%clk 0:00:16]}  Ke7 {[%clk 0:00:05]} 48. Rg7+ {[%clk 0:00:16]}  Rf7 {[%clk 0:00:06]} 49. Rxg6 {[%clk 0:00:17]}  Rh7 {[%clk 0:00:05]} 50. Kh4 {[%clk 0:00:17]}  Kf7 {[%clk 0:00:05]} 51. Rg5 {[%clk 0:00:17]}  Kf6 {[%clk 0:00:04]} 52. Rg8 {[%clk 0:00:17]}  Kf7 {[%clk 0:00:04]} 53. Rg5 {[%clk 0:00:17]}  Rg7 {[%clk 0:00:02]} 54. Rxh5 {[%clk 0:00:14]}  Rg1 {[%clk 0:00:03]} 55. Rh7+ {[%clk 0:00:14]}  Kg6 {[%clk 0:00:03]} 56. Ra7 {[%clk 0:00:13]}  Rh1+ {[%clk 0:00:04]} 57. Kg4 {[%clk 0:00:13]}  Rc1 {[%clk 0:00:04]} 58. f5+ {[%clk 0:00:11]}  exf5+ {[%clk 0:00:02]} 59. Kf4 {[%clk 0:00:12]}  Rxc3 {[%clk 0:00:02]} 60. Ra6+ {[%clk 0:00:12]}  Kg7 {[%clk 0:00:01]} 61. Ke5 {[%clk 0:00:11]}  Bf7 {[%clk 0:00:01]} 62. Kxf5 {[%clk 0:00:11]}  Rxe3 {[%clk 0:00:02]} 63. Kf4 {[%clk 0:00:07]}  Rd3 {[%clk 0:00:01]} 64. Kxe4 {[%clk 0:00:08]}  Rd1 {[%clk 0:00:01]} 65. Rc6 {[%clk 0:00:07]}  Kf8 {[%clk 0:00:01]} 66. Ke5 {[%clk 0:00:07]}  Ke7 {[%clk 0:00:01]} 67. Rc7+ {[%clk 0:00:07]}  Kf8 {[%clk 0:00:01]} 68. Kf6 {[%clk 0:00:07]}  Rf1+ {[%clk 0:00:01]} 69. Ke5 {[%clk 0:00:07]}  Re1+ {[%clk 0:00:02]} 70. Kf6 {[%clk 0:00:07]}  Rf1+ {[%clk 0:00:02]} 71. Ke5 {[%clk 0:00:07]}  Rf2 {[%clk 0:00:02]} 72. d5 {[%clk 0:00:07]}  Re2+ {[%clk 0:00:02]} 73. Kf6 {[%clk 0:00:07]}  Rf2+ {[%clk 0:00:02]} 74. Ke5 {[%clk 0:00:08]}  Rd2 {[%clk 0:00:02]} 75. d6 {[%clk 0:00:08]}  Rd5+ {[%clk 0:00:03]} 76. Kf6 {[%clk 0:00:07]}  Rxd6+ {[%clk 0:00:03]} 77. Ke5 {[%clk 0:00:08]}  Rd3 {[%clk 0:00:03]} 78. Ke4 {[%clk 0:00:08]}  Rd1 {[%clk 0:00:03]} 79. Ke5 {[%clk 0:00:07]}  Kg7 {[%clk 0:00:04]} 80. Ke4 {[%clk 0:00:07]}  Re1+ {[%clk 0:00:01]} 81. Kf3 {[%clk 0:00:06]}  Kf6 {[%clk 0:00:01]} 82. Kf2 {[%clk 0:00:06]} 1-0


[Site "https://www.chess.com"]

[Event "Titled Tuesday Blitz January 10 Early 2023"]
[White "Gheorghiu, Calin"]
[Black "Bove, Alessandro"]
[WhiteFideId "1200305"]
[BlackFideId "814121"]
[WhiteElo "2313"]
[BlackElo "2311"]
[Result "1-0"]
[Round "09"]
[TimeControl "180+2"]
[Date "2023.01.10"]
[WhiteClock "0:00:34"]
[BlackClock "0:00:12"]

1. b3 {[%clk 0:02:56]}  Nc6 {[%clk 0:02:53]} 2. Bb2 {[%clk 0:02:56]}  e5 {[%clk 0:02:54]} 3. e3 {[%clk 0:02:56]}  f5 {[%clk 0:02:54]} 4. Bb5 {[%clk 0:02:56]}  d6 {[%clk 0:02:53]} 5. d4 {[%clk 0:02:51]}  exd4 {[%clk 0:02:52]} 6. Qxd4 {[%clk 0:02:48]}  Bd7 {[%clk 0:02:49]} 7. Qd2 {[%clk 0:02:44]}  Nf6 {[%clk 0:02:48]} 8. Nc3 {[%clk 0:02:44]}  g6 {[%clk 0:02:45]} 9. Nge2 {[%clk 0:02:36]}  Bg7 {[%clk 0:02:46]} 10. O-O-O {[%clk 0:02:35]}  O-O {[%clk 0:02:45]} 11. h4 {[%clk 0:02:34]}  a6 {[%clk 0:02:41]} 12. Bc4+ {[%clk 0:02:31]}  Kh8 {[%clk 0:02:39]} 13. h5 {[%clk 0:02:25]}  Nxh5 {[%clk 0:02:39]} 14. Rxh5 {[%clk 0:02:23]}  gxh5 {[%clk 0:02:40]} 15. Nf4 {[%clk 0:02:18]}  Qg5 {[%clk 0:02:26]} 16. Rh1 {[%clk 0:02:15]}  h4 {[%clk 0:02:21]} 17. g3 {[%clk 0:02:06]}  Ne5 {[%clk 0:01:57]} 18. Bd5 {[%clk 0:01:58]}  c6 {[%clk 0:01:55]} 19. gxh4 {[%clk 0:01:52]}  Qe7 {[%clk 0:01:49]} 20. Bg2 {[%clk 0:01:50]}  Be8 {[%clk 0:01:36]} 21. h5 {[%clk 0:01:48]}  h6 {[%clk 0:01:29]} 22. Nce2 {[%clk 0:01:43]}  Rd8 {[%clk 0:01:21]} 23. Nd4 {[%clk 0:01:25]}  Bf7 {[%clk 0:01:16]} 24. Nxf5 {[%clk 0:01:22]}  Qg5 {[%clk 0:01:13]} 25. Nxg7 {[%clk 0:01:21]}  Qxg7 {[%clk 0:01:13]} 26. Be4 {[%clk 0:01:18]}  Rfe8 {[%clk 0:01:02]} 27. Bg6 {[%clk 0:01:15]}  Bxg6 {[%clk 0:00:44]} 28. Nxg6+ {[%clk 0:01:12]}  Kh7 {[%clk 0:00:37]} 29. f4 {[%clk 0:01:09]}  Rd7 {[%clk 0:00:15]} 30. Rd1 {[%clk 0:00:44]}  Nf3 {[%clk 0:00:14]} 31. Qd3 {[%clk 0:00:43]}  Ne5 {[%clk 0:00:14]} 32. Nxe5+ {[%clk 0:00:38]}  Kh8 {[%clk 0:00:12]} 33. Nxd7 {[%clk 0:00:34]} 1-0


[Site "https://www.chess.com"]

[Event "Titled Tuesday Blitz January 10 Early 2023"]
[White "Martinez, Shawn"]
[Black "Estrada Nieto, Julian"]
[WhiteFideId "2039770"]
[BlackFideId "5101018"]
[WhiteElo "1881"]
[BlackElo "2215"]
[Result "1-0"]
[Round "09"]
[TimeControl "180+2"]
[Date "2023.01.10"]
[WhiteClock "0:00:09"]
[BlackClock "0:00:09"]

1. e4 {[%clk 0:02:53]}  e5 {[%clk 0:02:59]} 2. Nf3 {[%clk 0:02:48]}  Nc6 {[%clk 0:02:59]} 3. d4 {[%clk 0:02:47]}  exd4 {[%clk 0:02:59]} 4. Nxd4 {[%clk 0:02:46]}  Nf6 {[%clk 0:02:59]} 5. Nxc6 {[%clk 0:02:43]}  bxc6 {[%clk 0:02:59]} 6. e5 {[%clk 0:02:43]}  Qe7 {[%clk 0:02:58]} 7. Qe2 {[%clk 0:02:41]}  Nd5 {[%clk 0:02:59]} 8. c4 {[%clk 0:02:41]}  Nb6 {[%clk 0:02:59]} 9. Nd2 {[%clk 0:02:37]}  Qe6 {[%clk 0:02:45]} 10. b3 {[%clk 0:02:35]}  a5 {[%clk 0:02:44]} 11. Bb2 {[%clk 0:02:34]}  a4 {[%clk 0:02:44]} 12. O-O-O {[%clk 0:02:34]}  Bb4 {[%clk 0:02:39]} 13. f4 {[%clk 0:02:29]}  O-O {[%clk 0:02:11]} 14. Qe4 {[%clk 0:02:06]}  d5 {[%clk 0:01:39]} 15. Qc2 {[%clk 0:02:02]}  Ba6 {[%clk 0:01:26]} 16. f5 {[%clk 0:01:51]}  Qh6 {[%clk 0:01:22]} 17. Bd3 {[%clk 0:01:34]}  axb3 {[%clk 0:01:15]} 18. axb3 {[%clk 0:01:33]}  dxc4 {[%clk 0:01:14]} 19. bxc4 {[%clk 0:01:25]}  Rfd8 {[%clk 0:01:08]} 20. Kb1 {[%clk 0:01:18]}  Bxd2 {[%clk 0:00:59]} 21. Rxd2 {[%clk 0:01:11]}  Bxc4 {[%clk 0:00:58]} 22. Rhd1 {[%clk 0:01:10]}  Bxd3 {[%clk 0:00:41]} 23. Rxd3 {[%clk 0:01:10]}  Rxd3 {[%clk 0:00:40]} 24. Qxd3 {[%clk 0:01:09]}  Nd5 {[%clk 0:00:39]} 25. g4 {[%clk 0:01:01]}  Qf4 {[%clk 0:00:33]} 26. e6 {[%clk 0:00:46]}  fxe6 {[%clk 0:00:32]} 27. fxe6 {[%clk 0:00:46]}  Qxg4 {[%clk 0:00:24]} 28. Re1 {[%clk 0:00:21]}  Qb4 {[%clk 0:00:16]} 29. Re4 {[%clk 0:00:18]}  Qb5 {[%clk 0:00:13]} 30. Qg3 {[%clk 0:00:15]}  Qf1+ {[%clk 0:00:11]} 31. Re1 {[%clk 0:00:13]}  Qf5+ {[%clk 0:00:10]} 32. Kc1 {[%clk 0:00:13]}  Qg6 {[%clk 0:00:09]} 33. Qe5 {[%clk 0:00:12]}  Re8 {[%clk 0:00:09]} 34. h4 {[%clk 0:00:10]}  Qh6+ {[%clk 0:00:09]} 35. Kb1 {[%clk 0:00:09]}  Qf4 {[%clk 0:00:09]} 36. Qxg7# {[%clk 0:00:09]} 1-0


[Site "https://www.chess.com"]

[Event "Titled Tuesday Blitz January 10 Early 2023"]
[White "Degenbaev, Aziz"]
[Black "Shubenkova, Veronika"]
[WhiteFideId "13802640"]
[BlackFideId "44124040"]
[WhiteElo "2203"]
[BlackElo "1960"]
[Result "1-0"]
[Round "09"]
[TimeControl "180+2"]
[Date "2023.01.10"]
[WhiteClock "0:00:28"]
[BlackClock "0:01:01"]

1. c4 {[%clk 0:03:00]}  e6 {[%clk 0:02:58]} 2. Nc3 {[%clk 0:03:00]}  d5 {[%clk 0:02:58]} 3. d4 {[%clk 0:03:00]}  Nf6 {[%clk 0:02:58]} 4. cxd5 {[%clk 0:03:00]}  exd5 {[%clk 0:02:58]} 5. Bg5 {[%clk 0:03:01]}  Be7 {[%clk 0:02:58]} 6. e3 {[%clk 0:03:01]}  O-O {[%clk 0:02:58]} 7. Bd3 {[%clk 0:02:59]}  c6 {[%clk 0:02:58]} 8. Qc2 {[%clk 0:02:54]}  Nbd7 {[%clk 0:02:58]} 9. Nge2 {[%clk 0:02:54]}  Re8 {[%clk 0:02:56]} 10. O-O {[%clk 0:02:54]}  Ne4 {[%clk 0:02:54]} 11. Bxe4 {[%clk 0:02:31]}  dxe4 {[%clk 0:02:52]} 12. Bf4 {[%clk 0:02:30]}  f5 {[%clk 0:02:48]} 13. d5 {[%clk 0:02:22]}  Bf6 {[%clk 0:02:43]} 14. Rfd1 {[%clk 0:02:14]}  c5 {[%clk 0:02:38]} 15. d6 {[%clk 0:02:13]}  Ne5 {[%clk 0:02:33]} 16. Nb5 {[%clk 0:02:07]}  Nd3 {[%clk 0:02:17]} 17. Nc7 {[%clk 0:02:03]}  Be6 {[%clk 0:02:17]} 18. Nxa8 {[%clk 0:01:51]}  Qxa8 {[%clk 0:02:16]} 19. Rxd3 {[%clk 0:01:47]}  exd3 {[%clk 0:02:14]} 20. Qxd3 {[%clk 0:01:48]}  c4 {[%clk 0:02:11]} 21. Qd2 {[%clk 0:01:47]}  Rd8 {[%clk 0:02:02]} 22. Nd4 {[%clk 0:01:40]}  Qc8 {[%clk 0:01:59]} 23. Nxe6 {[%clk 0:01:21]}  Qxe6 {[%clk 0:01:57]} 24. Rd1 {[%clk 0:01:22]}  Kf7 {[%clk 0:01:54]} 25. h3 {[%clk 0:01:16]}  Rd7 {[%clk 0:01:53]} 26. Qa5 {[%clk 0:01:15]}  b6 {[%clk 0:01:51]} 27. Qb5 {[%clk 0:01:12]}  g5 {[%clk 0:01:49]} 28. Bg3 {[%clk 0:01:06]}  f4 {[%clk 0:01:46]} 29. exf4 {[%clk 0:01:04]}  Rxd6 {[%clk 0:01:46]} 30. Rxd6 {[%clk 0:01:04]}  Qxd6 {[%clk 0:01:46]} 31. fxg5 {[%clk 0:01:00]}  Qd1+ {[%clk 0:01:45]} 32. Kh2 {[%clk 0:01:01]}  Be7 {[%clk 0:01:36]} 33. Qxc4+ {[%clk 0:00:57]}  Kf8 {[%clk 0:01:35]} 34. Qc8+ {[%clk 0:00:56]}  Kf7 {[%clk 0:01:35]} 35. Qf5+ {[%clk 0:00:56]}  Kg8 {[%clk 0:01:34]} 36. Qe6+ {[%clk 0:00:55]}  Kf8 {[%clk 0:01:34]} 37. Qh6+ {[%clk 0:00:48]}  Kg8 {[%clk 0:01:20]} 38. Be5 {[%clk 0:00:48]}  Kf7 {[%clk 0:01:15]} 39. Qxh7+ {[%clk 0:00:42]}  Ke6 {[%clk 0:01:10]} 40. Bg3 {[%clk 0:00:38]}  Bxg5 {[%clk 0:01:04]} 41. Qg8+ {[%clk 0:00:35]}  Kf5 {[%clk 0:01:03]} 42. Qf7+ {[%clk 0:00:34]}  Bf6 {[%clk 0:01:02]} 43. Bh4 {[%clk 0:00:28]}  Qd6+ {[%clk 0:01:01]} 44. g3 {[%clk 0:00:28]} 1-0


[Site "https://www.chess.com"]

[Event "Titled Tuesday Blitz January 10 Early 2023"]
[White "Fajdetic, Hrvoje"]
[Black "Tarasova, Viktoriya"]
[WhiteFideId "14501945"]
[BlackFideId "4175840"]
[WhiteElo "2151"]
[BlackElo "2226"]
[Result "1-0"]
[Round "09"]
[TimeControl "180+2"]
[Date "2023.01.10"]
[WhiteClock "0:00:06"]
[BlackClock "0:00:02"]

1. d4 {[%clk 0:02:22]}  Nf6 {[%clk 0:02:58]} 2. Bf4 {[%clk 0:02:21]}  e6 {[%clk 0:02:57]} 3. e3 {[%clk 0:02:21]}  c5 {[%clk 0:02:57]} 4. Nd2 {[%clk 0:02:20]}  d5 {[%clk 0:02:57]} 5. c3 {[%clk 0:02:18]}  Bd6 {[%clk 0:02:57]} 6. Bg3 {[%clk 0:02:18]}  O-O {[%clk 0:02:53]} 7. Ngf3 {[%clk 0:02:18]}  Qc7 {[%clk 0:02:53]} 8. Ne5 {[%clk 0:02:17]}  Nbd7 {[%clk 0:02:53]} 9. f4 {[%clk 0:02:16]}  Ne4 {[%clk 0:02:47]} 10. Nxe4 {[%clk 0:02:00]}  dxe4 {[%clk 0:02:45]} 11. Qc2 {[%clk 0:01:46]}  f5 {[%clk 0:02:35]} 12. Bc4 {[%clk 0:01:40]}  Nf6 {[%clk 0:02:32]} 13. Qb3 {[%clk 0:01:35]}  Re8 {[%clk 0:02:29]} 14. Bh4 {[%clk 0:01:33]}  Bxe5 {[%clk 0:02:14]} 15. dxe5 {[%clk 0:01:30]}  Ng4 {[%clk 0:02:15]} 16. Bf2 {[%clk 0:01:26]}  a6 {[%clk 0:01:45]} 17. a4 {[%clk 0:01:25]}  Bd7 {[%clk 0:01:38]} 18. h3 {[%clk 0:01:23]}  Nxf2 {[%clk 0:01:38]} 19. Kxf2 {[%clk 0:01:23]}  Qc6 {[%clk 0:01:03]} 20. a5 {[%clk 0:01:21]}  Rab8 {[%clk 0:00:51]} 21. Rhd1 {[%clk 0:01:20]}  b5 {[%clk 0:00:45]} 22. axb6 {[%clk 0:01:19]}  Rxb6 {[%clk 0:00:45]} 23. Qa2 {[%clk 0:01:09]}  Qb7 {[%clk 0:00:28]} 24. b3 {[%clk 0:01:04]}  Bb5 {[%clk 0:00:27]} 25. Rd6 {[%clk 0:00:51]}  Bxc4 {[%clk 0:00:26]} 26. Rxb6 {[%clk 0:00:49]}  Qxb6 {[%clk 0:00:26]} 27. bxc4 {[%clk 0:00:49]}  Rd8 {[%clk 0:00:17]} 28. Rb1 {[%clk 0:00:44]}  Qa7 {[%clk 0:00:14]} 29. Rb2 {[%clk 0:00:30]}  h6 {[%clk 0:00:13]} 30. Qa5 {[%clk 0:00:29]}  Rd3 {[%clk 0:00:10]} 31. Rb6 {[%clk 0:00:25]}  Qd7 {[%clk 0:00:09]} 32. Qxc5 {[%clk 0:00:13]}  Rd2+ {[%clk 0:00:10]} 33. Kg3 {[%clk 0:00:13]}  Qd3 {[%clk 0:00:08]} 34. Rd6 {[%clk 0:00:11]}  Qe2 {[%clk 0:00:06]} 35. Qc8+ {[%clk 0:00:11]}  Kh7 {[%clk 0:00:06]} 36. Rxd2 {[%clk 0:00:10]}  Qxd2 {[%clk 0:00:07]} 37. Qc5 {[%clk 0:00:09]}  Qe1+ {[%clk 0:00:06]} 38. Kh2 {[%clk 0:00:09]}  Qxc3 {[%clk 0:00:05]} 39. Qb6 {[%clk 0:00:04]}  a5 {[%clk 0:00:04]} 40. Qxe6 {[%clk 0:00:04]}  Qxe3 {[%clk 0:00:01]} 41. Qxf5+ {[%clk 0:00:04]}  Kg8 {[%clk 0:00:02]} 42. Qe6+ {[%clk 0:00:05]}  Kh7 {[%clk 0:00:02]} 43. Qf5+ {[%clk 0:00:05]}  Kg8 {[%clk 0:00:02]} 44. Qg4 {[%clk 0:00:05]}  a4 {[%clk 0:00:02]} 45. f5 {[%clk 0:00:06]} 1-0


[Site "https://www.chess.com"]

[Event "Titled Tuesday Blitz January 10 Early 2023"]
[White "Lesbekova, Assel"]
[Black "Sala, Giulia"]
[WhiteFideId "13713248"]
[BlackFideId "2840451"]
[WhiteElo "1772"]
[BlackElo "1998"]
[Result "1-0"]
[Round "09"]
[TimeControl "180+2"]
[Date "2023.01.10"]
[WhiteClock "0:00:15"]
[BlackClock "0:00:15"]

1. e4 {[%clk 0:03:00]}  e5 {[%clk 0:02:56]} 2. Nf3 {[%clk 0:03:00]}  Nf6 {[%clk 0:02:55]} 3. Nxe5 {[%clk 0:02:59]}  Nc6 {[%clk 0:02:54]} 4. Nxc6 {[%clk 0:02:57]}  dxc6 {[%clk 0:02:54]} 5. d3 {[%clk 0:02:55]}  Bc5 {[%clk 0:02:53]} 6. Be2 {[%clk 0:02:53]}  h5 {[%clk 0:02:52]} 7. Be3 {[%clk 0:02:49]}  Bxe3 {[%clk 0:02:48]} 8. fxe3 {[%clk 0:02:49]}  Ng4 {[%clk 0:02:48]} 9. Qd2 {[%clk 0:02:47]}  Qg5 {[%clk 0:02:47]} 10. Bxg4 {[%clk 0:02:45]}  hxg4 {[%clk 0:02:45]} 11. g3 {[%clk 0:02:44]}  Be6 {[%clk 0:02:37]} 12. Nc3 {[%clk 0:02:41]}  O-O-O {[%clk 0:02:36]} 13. O-O-O {[%clk 0:02:39]}  Rhe8 {[%clk 0:02:36]} 14. Rhf1 {[%clk 0:02:35]}  Qh6 {[%clk 0:02:34]} 15. Rf4 {[%clk 0:02:22]}  Rh8 {[%clk 0:02:32]} 16. Rf2 {[%clk 0:02:19]}  b5 {[%clk 0:02:23]} 17. Kb1 {[%clk 0:02:15]}  Rd7 {[%clk 0:02:21]} 18. Ne2 {[%clk 0:02:14]}  Rhd8 {[%clk 0:02:13]} 19. Nd4 {[%clk 0:02:10]}  Kb7 {[%clk 0:02:10]} 20. Qc3 {[%clk 0:02:03]}  Rd6 {[%clk 0:02:04]} 21. e5 {[%clk 0:01:59]}  Rd5 {[%clk 0:01:36]} 22. Qxc6+ {[%clk 0:01:50]}  Kb8 {[%clk 0:01:31]} 23. Nxb5 {[%clk 0:01:42]}  R8d7 {[%clk 0:01:05]} 24. Nc3 {[%clk 0:00:59]}  Rxe5 {[%clk 0:01:00]} 25. Qa4 {[%clk 0:00:54]}  Qxe3 {[%clk 0:00:57]} 26. Re2 {[%clk 0:00:51]}  Qc5 {[%clk 0:00:55]} 27. d4 {[%clk 0:00:42]}  Qxc3 {[%clk 0:00:33]} 28. bxc3 {[%clk 0:00:35]}  Rxe2 {[%clk 0:00:30]} 29. Qb5+ {[%clk 0:00:35]}  Ka8 {[%clk 0:00:30]} 30. Qxe2 {[%clk 0:00:34]}  Rd6 {[%clk 0:00:30]} 31. d5 {[%clk 0:00:28]}  Bxd5 {[%clk 0:00:29]} 32. c4 {[%clk 0:00:21]}  Rb6+ {[%clk 0:00:17]} 33. Kc1 {[%clk 0:00:19]}  Bf3 {[%clk 0:00:17]} 34. Rd8+ {[%clk 0:00:17]}  Kb7 {[%clk 0:00:17]} 35. Qe8 {[%clk 0:00:16]}  Re6 {[%clk 0:00:16]} 36. Rb8+ {[%clk 0:00:15]}  Ka6 {[%clk 0:00:15]} 37. Qa4# {[%clk 0:00:15]} 1-0


[Site "https://www.chess.com"]

[Event "Titled Tuesday Blitz January 10 Early 2023"]
[White "Dinu, Dumitru-Daniel"]
[Black "Vlassov, Nikolai"]
[WhiteFideId "1208403"]
[BlackFideId "4103360"]
[WhiteElo "2203"]
[BlackElo "2283"]
[Result "0-1"]
[Round "09"]
[TimeControl "180+2"]
[Date "2023.01.10"]
[WhiteClock "0:00:03"]
[BlackClock "0:00:05"]

1. e4 {[%clk 0:02:55]}  c5 {[%clk 0:02:59]} 2. Be2 {[%clk 0:02:51]}  g6 {[%clk 0:02:58]} 3. f4 {[%clk 0:02:51]}  Bg7 {[%clk 0:02:57]} 4. Nf3 {[%clk 0:02:51]}  d5 {[%clk 0:02:54]} 5. d3 {[%clk 0:02:49]}  dxe4 {[%clk 0:02:50]} 6. dxe4 {[%clk 0:02:49]}  Qxd1+ {[%clk 0:02:50]} 7. Bxd1 {[%clk 0:02:50]}  Nc6 {[%clk 0:02:49]} 8. c3 {[%clk 0:02:49]}  e5 {[%clk 0:02:40]} 9. Ba4 {[%clk 0:02:45]}  Bd7 {[%clk 0:02:40]} 10. O-O {[%clk 0:02:43]}  Nge7 {[%clk 0:02:37]} 11. fxe5 {[%clk 0:02:39]}  Nxe5 {[%clk 0:02:34]} 12. Nxe5 {[%clk 0:02:39]}  Bxa4 {[%clk 0:02:30]} 13. Nxf7 {[%clk 0:02:37]}  O-O {[%clk 0:02:29]} 14. Ng5 {[%clk 0:02:29]}  Rxf1+ {[%clk 0:02:28]} 15. Kxf1 {[%clk 0:02:29]}  Nc6 {[%clk 0:02:05]} 16. Be3 {[%clk 0:02:24]}  Bh6 {[%clk 0:01:45]} 17. h4 {[%clk 0:02:13]}  Re8 {[%clk 0:01:33]} 18. b3 {[%clk 0:02:07]}  Bb5+ {[%clk 0:01:25]} 19. c4 {[%clk 0:02:07]}  Bg7 {[%clk 0:01:22]} 20. cxb5 {[%clk 0:02:05]}  Nb4 {[%clk 0:01:11]} 21. Nc3 {[%clk 0:01:58]}  Nc2 {[%clk 0:01:07]} 22. Rc1 {[%clk 0:01:57]}  Nxe3+ {[%clk 0:01:06]} 23. Kg1 {[%clk 0:01:36]}  Bd4 {[%clk 0:00:57]} 24. Kh2 {[%clk 0:01:30]}  Ng4+ {[%clk 0:00:42]} 25. Kg3 {[%clk 0:01:21]}  Nf6 {[%clk 0:00:40]} 26. Nd5 {[%clk 0:00:56]}  Nxe4+ {[%clk 0:00:32]} 27. Nxe4 {[%clk 0:00:56]}  Rxe4 {[%clk 0:00:33]} 28. Rxc5 {[%clk 0:00:54]}  Bxc5 {[%clk 0:00:15]} 29. Nf6+ {[%clk 0:00:54]}  Kf7 {[%clk 0:00:15]} 30. Nxe4 {[%clk 0:00:55]}  Be7 {[%clk 0:00:14]} 31. Kg4 {[%clk 0:00:32]}  h5+ {[%clk 0:00:11]} 32. Kh3 {[%clk 0:00:27]}  Ke6 {[%clk 0:00:11]} 33. g3 {[%clk 0:00:25]}  Kd5 {[%clk 0:00:11]} 34. Nc3+ {[%clk 0:00:24]}  Kd4 {[%clk 0:00:10]} 35. Na4 {[%clk 0:00:23]}  Kd3 {[%clk 0:00:08]} 36. Kg2 {[%clk 0:00:20]}  Kc2 {[%clk 0:00:09]} 37. Kf3 {[%clk 0:00:20]}  Kb1 {[%clk 0:00:09]} 38. Nc3+ {[%clk 0:00:20]}  Kb2 {[%clk 0:00:09]} 39. Nd5 {[%clk 0:00:20]}  Bd8 {[%clk 0:00:09]} 40. Nf4 {[%clk 0:00:19]}  g5 {[%clk 0:00:08]} 41. hxg5 {[%clk 0:00:19]}  Bxg5 {[%clk 0:00:08]} 42. Nxh5 {[%clk 0:00:19]}  Kxa2 {[%clk 0:00:09]} 43. Ng7 {[%clk 0:00:18]}  Kxb3 {[%clk 0:00:09]} 44. Ne6 {[%clk 0:00:18]}  Be7 {[%clk 0:00:09]} 45. Ke4 {[%clk 0:00:16]}  Kc4 {[%clk 0:00:09]} 46. Nd4 {[%clk 0:00:16]}  Bf6 {[%clk 0:00:08]} 47. Nf5 {[%clk 0:00:15]}  Kxb5 {[%clk 0:00:08]} 48. Kd5 {[%clk 0:00:15]}  a5 {[%clk 0:00:06]} 49. Nd6+ {[%clk 0:00:15]}  Ka6 {[%clk 0:00:07]} 50. Kc4 {[%clk 0:00:14]}  Be7 {[%clk 0:00:06]} 51. Nb5 {[%clk 0:00:14]}  Bg5 {[%clk 0:00:06]} 52. Nc3 {[%clk 0:00:11]}  Kb6 {[%clk 0:00:06]} 53. Nd5+ {[%clk 0:00:08]}  Kc6 {[%clk 0:00:06]} 54. Nc3 {[%clk 0:00:08]}  Bf6 {[%clk 0:00:05]} 55. Nd5 {[%clk 0:00:07]}  Bg5 {[%clk 0:00:05]} 56. Nc3 {[%clk 0:00:07]}  Be7 {[%clk 0:00:05]} 57. Nd5 {[%clk 0:00:07]}  Bd6 {[%clk 0:00:05]} 58. g4 {[%clk 0:00:07]}  b5+ {[%clk 0:00:05]} 59. Kd4 {[%clk 0:00:07]}  Bc5+ {[%clk 0:00:06]} 60. Ke5 {[%clk 0:00:07]}  a4 {[%clk 0:00:06]} 61. g5 {[%clk 0:00:04]}  a3 {[%clk 0:00:06]} 62. Nc3 {[%clk 0:00:04]}  b4 {[%clk 0:00:07]} 63. g6 {[%clk 0:00:04]}  Bf8 {[%clk 0:00:05]} 64. Nb1 {[%clk 0:00:01]}  a2 {[%clk 0:00:05]} 65. Nd2 {[%clk 0:00:02]}  a1=Q+ {[%clk 0:00:05]} 66. Kf5 {[%clk 0:00:01]}  Qg7 {[%clk 0:00:05]} 67. Ne4 {[%clk 0:00:01]}  Be7 {[%clk 0:00:05]} 68. Ng5 {[%clk 0:00:01]}  Qf6+ {[%clk 0:00:05]} 69. Kg4 {[%clk 0:00:01]}  Qxg5+ {[%clk 0:00:06]} 70. Kh3 {[%clk 0:00:02]}  Qxg6 {[%clk 0:00:06]} 71. Kh2 {[%clk 0:00:02]}  Bd6+ {[%clk 0:00:06]} 72. Kh3 {[%clk 0:00:03]}  Qg3# {[%clk 0:00:05]} 0-1


[Site "https://www.chess.com"]